bitfinex/quotes_ETHUSD_20250801
["timestamp","ask_amount","ask_price","bid_price","bid_amount"]
[1754084189662,27.74268974,3548.9,3548.8,0.002]
[1754084189879,27.88348974,3548.9,3548.8,0.002]
[1754084190240,3.36785392,3548.8,3548.7,1e-08]
[1754084190444,7.29868668,3548.8,3548.7,1e-08]
[1754084191652,17.29868668,3548.8,3548.7,1e-08]
[1754084192259,3.36872762,3547.7,3547.6,0.002]
[1754084192471,8.43026411,3547.7,3547.6,0.002]
[1754084192773,12.63626411,3547.7,3547.6,0.002]
[1754084193282,9.63626411,3547.7,3547.6,0.002]
[1754084193670,19.63626411,3547.7,3547.6,0.002]
[1754084195889,18.89626411,3547.7,3547.6,0.002]
[1754084196088,19.63626411,3547.7,3547.6,0.002]
[1754084197188,2.81952237,3546.7,3546.3,0.6882]
[1754084197511,7.81332237,3546.7,3546.3,0.6882]
[1754084197652,7.81332237,3546.7,3545.8,0.6882]
[1754084197653,8.27932237,3546.7,3545.8,0.6882]
[1754084197865,9.01932237,3546.7,3546.0,0.6902]
[1754084198466,19.01932237,3546.7,3546.0,0.6902]
[1754084198792,21.20319786,3546.7,3546.0,0.6902]
[1754084200482,3.36999943,3546.1,3546.0,0.6902]
[1754084200685,7.81379943,3546.1,3546.0,0.6902]
[1754084200888,8.27979943,3546.1,3546.0,0.002]
[1754084202181,9.01979943,3546.1,3546.0,0.002]
[1754084202509,20.20377028,3546.1,3546.0,0.002]
[1754084203279,26.43829251,3546.1,3546.0,0.002]
[1754084204409,3.37031756,3545.7,3545.6,0.002]
[1754084204609,14.04963979,3545.7,3545.6,0.002]
[1754084204813,16.0186345,3545.7,3545.6,0.002]
[1754084204981,18.60995795,3545.7,3545.6,0.002]
[1754084207586,28.60995795,3545.7,3545.6,0.002]
[1754084208203,3.37103362,3544.8,3544.7,0.7183]
[1754084208399,7.81583362,3544.8,3544.7,0.7183]
[1754084208816,8.67267908,3544.8,3544.7,0.7183]
[1754084209601,18.67267908,3544.8,3544.7,0.7183]
[1754084210601,14.36867908,3544.8,3544.7,0.7183]
[1754084210806,18.67367908,3544.8,3544.7,0.7183]
[1754084211402,3.37114179,3544.7,3544.4,0.002]
[1754084211601,0.6908,3544.5,3544.4,0.002]
[1754084212279,0.6908,3544.5,3544.4,0.7203]
[1754084214214,4.9958,3544.5,3544.4,1.1649]
[1754084215912,4.9958,3544.5,3544.4,0.7203]
[1754084216889,4.9958,3544.5,3544.4,0.002]
[1754084216890,9.96656754,3544.5,3544.4,0.002]
[1754084217096,10.26366754,3544.5,3544.4,0.002]
[1754084218822,9.82576754,3544.5,3544.4,0.002]
[1754084218980,10.26366754,3544.5,3544.4,0.002]
[1754084219687,20.26366754,3544.5,3544.4,0.002]
[1754084225227,17.67727239,3544.5,3544.4,0.7203]
[1754084225515,7.67727239,3544.5,3544.4,0.7203]
[1754084227221,7.81807239,3544.5,3544.4,0.7203]
[1754084232299,3.51207239,3544.5,3544.4,0.7203]
[1754084232499,4.4458,3544.5,3544.4,1.1649]
[1754084232724,0.1408,3544.5,3544.4,13.22077422]
[1754084232912,10.85684546,3544.8,3544.7,3.0]
[1754084233097,15.16184546,3544.8,3544.7,4.1629]
[1754084233290,15.30264546,3544.8,3544.7,4.1629]
[1754084233526,5.30264546,3544.8,3544.7,4.1629]
[1754084234050,5.16184546,3544.8,3544.7,3.98401321]
[1754084234231,5.16184546,3544.8,3544.7,5.702011]
[1754084234997,0.85684546,3544.8,3544.7,8.702011]
[1754084235196,5.16184546,3544.8,3544.7,8.702011]
[1754084235406,5.16184546,3544.8,3544.7,8.842811]
[1754084235913,0.85684546,3544.8,3544.7,15.07733323]
[1754084236123,5.16184546,3544.8,3544.7,15.07733323]
[1754084238343,0.001,3546.1,3545.9,2.82013719]
[1754084238556,0.001,3546.1,3546.0,3.0]
[1754084238750,0.001,3546.1,3546.0,6.94527896]
[1754084239085,4.856,3546.1,3546.0,6.94527896]
[1754084239362,4.305,3546.1,3546.0,7.93590058]
[1754084239510,4.305,3546.1,3546.0,8.07670058]
[1754084239710,4.305,3546.1,3546.0,8.21266129]
[1754084240049,4.305,3546.1,3546.0,8.07670058]
[1754084242122,0.001,3546.1,3546.0,8.07670058]
[1754084242325,0.001,3546.1,3546.0,8.21790348]
[1754084242884,10.0,3547.6,3547.0,2.8192839]
[1754084243036,4.304,3547.5,3547.1,3.6674]
[1754084243227,4.304,3547.5,3547.4,2.818966]
[1754084243432,10.0,3547.6,3547.4,3.48632084]
[1754084243687,0.1408,3547.7,3547.5,2.8188758]
[1754084243866,4.304,3547.6,3547.5,2.8188758]
[1754084244080,0.1408,3547.7,3547.5,3.4862758]
[1754084244232,0.1408,3547.7,3547.6,2.81880708]
[1754084244577,6.777,3548.0,3547.9,3.0]
[1754084244763,11.081,3548.0,3547.9,3.0]
[1754084244933,11.081,3548.0,3547.7,2.81869668]
[1754084245136,0.55,3547.9,3547.7,2.81869668]
[1754084245445,0.55,3547.9,3547.8,0.6674]
[1754084246932,6.777,3548.0,3547.8,0.6674]
[1754084247129,6.777,3548.0,3547.9,2.81856873]
[1754084247331,11.08,3548.0,3547.9,2.81856873]
[1754084247561,11.08,3548.0,3547.9,3.48596873]
[1754084247885,11.08,3548.0,3547.9,3.6674]
[1754084248533,11.08,3548.0,3547.9,6.48596873]
[1754084248805,11.08,3548.0,3547.9,3.6674]
[1754084249432,6.777,3548.0,3547.9,3.6674]
[1754084249629,11.079,3548.0,3547.9,3.6674]
[1754084250687,11.079,3548.0,3547.9,6.48596873]
[1754084251090,0.001,3548.3,3548.2,2.81833042]
[1754084251274,0.001,3548.3,3548.2,5.95913042]
[1754084251275,4.302,3548.3,3548.2,5.95913042]
[1754084251773,4.302,3548.3,3548.2,6.62653042]
[1754084253486,4.302,3548.3,3548.2,3.8082]
[1754084253651,4.302,3548.3,3548.2,6.62653042]
[1754084255203,0.001,3548.3,3548.2,8.75941843]
[1754084258584,0.001,3548.3,3548.2,14.99394066]
[1754084262293,0.001,3548.3,3548.2,18.83514066]
[1754084270692,0.6595,3549.9,3549.1,6.23452223]
[1754084270898,0.6595,3549.9,3548.8,2.81780513]
[1754084270899,1.1152,3549.8,3548.8,2.81780513]
[1754084271205,0.55,3549.6,3548.4,3.0]
[1754084271535,3.93254867,3549.5,3548.8,2.81779707]
[1754084271737,3.93254867,3549.5,3548.6,3.0]
[1754084271738,0.55,3549.1,3547.6,1.27628]
[1754084271892,0.55,3549.1,3548.0,7.9882]
[1754084272087,1.1152,3549.0,3548.5,3.0]
[1754084272284,0.55,3548.8,3548.5,3.0]
[1754084272721,0.55,3549.0,3548.5,3.0]
[1754084272926,0.55,3548.6,3548.5,3.0]
[1754084273434,1.6652,3548.6,3548.5,3.0]
[1754084276034,1.6652,3548.6,3548.5,2.81809215]
[1754084280325,0.55,3548.5,3548.4,5.81814494]
[1754084280698,1.0067,3548.5,3548.4,5.81814494]
[1754084282436,0.55,3548.9,3548.8,2.81785392]
[1754084282624,0.55,3548.9,3548.8,5.81785392]
[1754084282625,4.879,3548.9,3548.8,5.81785392]
[1754084282832,4.329,3548.9,3548.8,5.81785392]
[1754084282994,4.329,3548.9,3548.8,6.47405392]
[1754084283733,0.55,3549.1,3549.0,3.0]
[1754084283922,0.55,3549.1,3549.0,5.81769512]
[1754084284123,0.55,3549.2,3549.1,5.81760152]
[1754084284298,1.0067,3549.2,3549.1,5.81760152]
[1754084284501,1.6652,3549.2,3549.1,5.81760152]
[1754084286440,1.0067,3549.2,3549.1,5.81760152]
[1754084289155,1.6652,3549.2,3549.1,5.81760152]
[1754084289306,1.0067,3549.2,3549.1,5.81760152]
[1754084289507,4.329,3549.3,3549.2,5.81753634]
[1754084289750,5.3357,3549.3,3549.2,5.81753634]
[1754084290307,1.0067,3549.3,3549.2,5.81753634]
[1754084290511,5.3327,3549.3,3549.2,5.81753634]
[1754084291358,4.876,3549.3,3549.2,5.81753634]
[1754084292429,4.876,3549.3,3549.1,3.0]
[1754084292634,1.1152,3549.2,3549.1,3.0]
[1754084293232,1.1152,3549.2,3549.1,5.81761573]
[1754084293755,1.1152,3549.2,3549.1,3.0]
[1754084295164,0.4567,3549.2,3549.1,3.0]
[1754084296538,1.1556,3549.2,3549.1,3.0]
[1754084296939,0.4567,3549.2,3549.1,3.0]
[1754084297159,4.876,3549.3,3549.1,3.0]
[1754084297525,5.3357,3549.3,3549.1,3.0]
[1754084299741,5.3357,3549.3,3549.1,2.81756612]
[1754084300064,5.3357,3549.3,3549.0,5.95845736]
[1754084300563,4.318,3549.2,3549.0,5.95845736]
[1754084300763,4.318,3549.2,3549.0,6.61695736]
[1754084303535,4.318,3549.2,3549.1,5.81761573]
[1754084304358,4.318,3549.2,3549.1,3.0]
[1754084304666,4.7777,3549.2,3549.1,3.0]
[1754084305975,4.7777,3549.2,3549.1,5.81761573]
[1754084306473,4.7777,3549.2,3549.1,3.0]
[1754084307346,4.7777,3549.2,3549.1,5.81761573]
[1754084307548,4.318,3549.2,3549.1,5.81761573]
[1754084308871,4.318,3549.2,3549.1,3.0]
[1754084309663,4.318,3549.2,3549.1,3.6585]
[1754084309969,4.7777,3549.2,3549.1,5.81761573]
[1754084312183,4.7777,3549.2,3549.1,3.0]
[1754084312482,4.7777,3549.2,3549.1,5.81761573]
[1754084312483,4.318,3549.2,3549.1,5.81761573]
[1754084313661,4.7777,3549.2,3549.1,5.81761573]
[1754084314227,8.76197634,3549.2,3549.1,3.0]
[1754084314358,6.64334,3549.2,3549.1,3.0]
[1754084324298,6.78414,3549.2,3549.1,3.0]
[1754084329894,6.09774,3549.2,3549.1,3.0]
[1754084330097,6.78064,3549.2,3549.1,3.0]
[1754084332579,5.481,3549.2,3549.1,3.0]
[1754084333824,6.1639,3549.2,3549.1,3.0]
[1754084334323,6.1649,3549.2,3549.1,3.0]
[1754084335828,5.482,3549.2,3549.1,3.0]
[1754084337495,5.0098,3549.2,3549.1,3.634]
[1754084338020,5.0098,3549.2,3549.1,3.0]
[1754084338427,5.482,3549.2,3549.1,3.0]
[1754084338726,1.164,3549.2,3549.1,3.0]
[1754084338926,4.9938,3549.2,3549.1,3.0]
[1754084339291,5.466,3549.2,3549.1,3.0]
[1754084339900,4.9938,3549.2,3549.1,3.0]
[1754084341238,5.466,3549.2,3549.1,3.0]
[1754084342839,4.9938,3549.2,3549.1,3.0]
[1754084343028,6.64292267,3549.2,3549.1,3.0]
[1754084343223,7.11512267,3549.2,3549.1,3.0]
[1754084344342,7.79802267,3549.2,3549.1,3.0]
[1754084348843,2.34092267,3549.2,3549.1,3.0]
[1754084349014,6.64192267,3549.2,3549.1,3.0]
[1754084349221,7.79702267,3549.2,3549.1,3.0]
[1754084350547,17.79702267,3549.2,3549.1,3.0]
[1754084352622,13.49602267,3549.2,3549.1,3.0]
[1754084352817,17.79702267,3549.2,3549.1,3.0]
[1754084353228,13.49602267,3549.2,3549.1,3.0]
[1754084353433,17.79702267,3549.2,3549.1,3.0]
[1754084353647,19.92376834,3549.2,3548.3,0.002]
[1754084353842,5.44658966,3548.4,3548.3,0.002]
[1754084354025,9.74758966,3548.4,3548.3,0.002]
[1754084354227,13.72086123,3548.4,3548.3,0.002]
[1754084354436,10.90268966,3548.4,3548.3,0.002]
[1754084354946,10.21978966,3548.4,3548.3,0.002]
[1754084356948,5.3232,3548.4,3548.3,0.002]
[1754084358857,8.14137157,3548.4,3548.3,0.002]
[1754084359059,0.55,3548.6,3548.3,0.002]
[1754084359216,4.302,3548.5,3548.3,0.6211]
[1754084359561,2.26936123,3549.1,3548.3,5.82025099]
[1754084359562,4.852,3548.4,3548.3,5.82025099]
[1754084359922,4.852,3548.4,3548.3,6.43935099]
[1754084360119,4.852,3548.4,3548.3,6.89635099]
[1754084360522,10.0,3549.1,3549.0,2.81769512]
[1754084360722,10.0,3549.1,3549.0,6.89379512]
[1754084360947,14.302,3549.1,3549.0,6.89379512]
[1754084361662,0.001,3549.2,3549.1,5.81761573]
[1754084361860,1e-08,3549.2,3549.1,8.77021114]
[1754084362020,0.001,3550.1,3549.8,5.81706011]
[1754084362542,0.001,3550.1,3549.8,6.89316011]
[1754084362873,0.001,3550.1,3550.0,2.8169014]
[1754084363038,0.001,3550.1,3550.0,5.8169014]
[1754084363361,0.001,3550.1,3550.0,6.2739014]
[1754084363538,0.001,3550.1,3550.0,6.8930014]
[1754084363738,0.001,3550.1,3550.0,7.0338014]
[1754084363947,0.001,3550.1,3550.0,8.78703596]
[1754084364270,0.551,3550.1,3550.0,8.78703596]
[1754084364753,0.001,3550.1,3550.0,8.78703596]
[1754084376479,0.001,3550.1,3550.0,13.08603596]
[1754084379780,0.001,3550.1,3550.0,12.00993596]
[1754084380076,0.001,3550.1,3550.0,12.62903596]
[1754084380483,0.001,3550.1,3550.0,8.33003596]
[1754084382168,0.001,3550.1,3550.0,7.71093596]
[1754084382373,1.6789,3550.1,3550.0,7.71093596]
[1754084384784,1.6789,3550.1,3550.0,3.1408]
[1754084385284,1.6789,3550.1,3550.0,3.0]
[1754084386489,5.9779,3550.1,3550.0,3.0]
[1754084389761,8.79472206,3550.1,3550.0,3.0]
[1754084392393,5.9779,3550.1,3550.0,3.0]
[1754084392596,8.79472206,3550.1,3550.0,3.0]
[1754084394673,9.95586262,3550.1,3550.0,3.0]
[1754084395483,10.09666262,3550.1,3550.0,3.0]
[1754084397399,3.36721884,3549.6,3549.5,0.1408]
[1754084397565,3.36734466,3549.5,3548.8,3.46463777]
[1754084397769,0.55,3549.3,3549.0,0.1408]
[1754084398077,0.55,3549.1,3549.0,0.1408]
[1754084398403,0.55,3549.1,3549.0,0.7876]
[1754084399267,0.55,3549.1,3549.0,0.1408]
[1754084399477,1.0122,3549.1,3549.0,0.1408]
[1754084399874,0.55,3549.1,3549.0,0.7876]
[1754084400205,0.55,3549.3,3549.0,0.1408]
[1754084400501,0.55,3549.1,3549.0,0.1408]
[1754084400679,0.55,3549.1,3548.8,3.0]
[1754084400874,0.55,3549.6,3548.4,0.4719]
[1754084401101,4.299,3549.5,3549.1,2.81755654]
[1754084401274,0.55,3549.4,3548.5,2.81809215]
[1754084401475,2.81782795,3548.9,3547.7,0.84639]
[1754084401804,2.81690294,3550.0,3546.7,9.58747455]
[1754084401805,0.6236,3550.2,3548.9,3.0]
[1754084401963,0.55,3549.8,3549.1,3.0]
[1754084402163,3.36712493,3549.8,3549.1,3.46436427]
[1754084402401,0.55,3549.8,3549.3,3.0]
[1754084402604,3.36706321,3549.8,3549.2,3.0]
[1754084402767,0.55,3549.6,3549.3,0.6468]
[1754084403177,1.0122,3549.6,3549.3,0.6468]
[1754084403504,1.0122,3549.6,3549.1,3.0]
[1754084403877,3.82942496,3549.6,3549.0,0.6468]
[1754084404077,1.0122,3549.6,3549.1,3.0]
[1754084404278,1.0122,3549.6,3548.8,2.81784334]
[1754084404279,0.55,3549.4,3548.8,3.46458052]
[1754084404510,0.55,3549.2,3548.8,4.39283852]
[1754084404687,0.55,3549.2,3548.6,3.0]
[1754084405005,0.001,3550.1,3549.1,3.0]
[1754084405206,0.55,3549.9,3549.8,3.0]
[1754084405573,0.55,3549.9,3549.8,3.6468]
[1754084406024,0.55,3549.9,3549.8,0.6468]
[1754084406199,0.001,3550.1,3549.8,0.6468]
[1754084406389,0.55,3549.9,3549.8,0.6468]
[1754084406587,4.874,3549.9,3549.8,6.46386011]
[1754084406987,0.001,3550.1,3550.0,5.8169014]
[1754084407311,0.001,3550.5,3550.4,5.81658404]
[1754084407513,0.001,3550.5,3550.4,12.05234456]
[1754084407676,0.001,3551.6,3551.5,2.81571167]
[1754084408008,4.337,3551.6,3551.4,2.81576621]
[1754084408215,4.337,3551.6,3551.5,0.6468]
[1754084408411,4.337,3551.6,3551.0,2.8160407]
[1754084408617,4.337,3551.6,3551.3,3.0]
[1754084408618,0.001,3551.6,3551.3,3.0]
[1754084408814,4.335,3551.5,3551.3,3.0]
[1754084409015,4.335,3551.5,3551.4,0.6468]
[1754084409330,0.001,3551.6,3551.5,5.81571167]
[1754084409716,0.001,3551.6,3551.5,6.93441167]
[1754084410215,0.001,3551.6,3551.5,6.46251167]
[1754084410378,0.001,3551.6,3551.5,6.93441167]
[1754084410822,0.001,3551.6,3551.5,7.07521167]
[1754084411115,0.001,3551.6,3551.5,9.12218262]
[1754084411593,0.001,3551.6,3551.5,9.23491862]
[1754084412116,0.001,3551.6,3551.5,3.1408]
[1754084412304,1.6368,3551.6,3551.5,3.1408]
[1754084413403,1.0132,3551.6,3551.5,3.1408]
[1754084413718,0.55,3551.5,3551.1,0.1408]
[1754084413904,0.55,3551.4,3551.1,0.1408]
[1754084414104,0.55,3551.2,3551.1,0.1408]
[1754084415296,5.33190216,3551.2,3551.1,0.1408]
[1754084415906,0.55,3551.0,3550.7,0.1408]
[1754084416106,0.55,3550.8,3550.7,0.1408]
[1754084416308,5.3402,3550.8,3550.7,0.1408]
[1754084421624,5.9637,3550.8,3550.7,0.1408]
[1754084421839,6.56007,3550.8,3550.7,0.1408]
[1754084422001,9.3763849,3550.8,3550.4,0.1408]
[1754084422204,1.0647,3550.7,3550.4,0.1408]
[1754084422405,3.88104657,3550.7,3550.4,0.1408]
[1754084422637,1.0647,3550.6,3550.4,0.1408]
[1754084422842,4.894,3550.5,3550.4,0.1408]
[1754084423141,5.3352,3550.5,3550.4,0.1408]
[1754084424260,6.83620635,3550.5,3549.6,0.6316]
[1754084424419,0.55,3550.3,3549.9,0.1408]
[1754084424607,0.55,3550.1,3549.9,0.1408]
[1754084425008,0.55,3550.1,3549.9,0.7724]
[1754084426878,0.55,3550.1,3549.9,0.1408]
[1754084427635,0.9912,3550.1,3549.9,0.1408]
[1754084428759,3.80804627,3550.1,3549.9,0.1408]
[1754084429654,0.9912,3550.1,3549.9,0.1408]
[1754084429852,4.888,3550.0,3549.9,0.1408]
[1754084446655,5.3471,3550.0,3549.9,0.1408]
[1754084446858,5.9511,3550.0,3549.9,0.1408]
[1754084447148,5.3471,3550.0,3549.9,0.1408]
[1754084447354,4.888,3550.0,3549.9,0.1408]
[1754084448582,0.55,3549.9,3549.6,0.6079]
[1754084448784,4.324,3549.8,3549.6,0.6079]
[1754084449780,0.55,3549.7,3549.6,0.6079]
[1754084450279,0.55,3549.7,3549.5,0.002]
[1754084450582,4.322,3549.6,3549.5,0.002]
[1754084450884,4.322,3549.6,3549.5,0.6099]
[1754084453214,4.322,3549.6,3549.5,0.002]
[1754084454297,4.872,3549.6,3549.5,0.002]
[1754084454503,5.9351,3549.6,3549.5,0.002]
[1754084456800,4.869,3549.6,3549.5,0.002]
[1754084458283,5.9321,3549.6,3549.5,0.002]
[1754084458474,5.3281,3549.6,3549.5,0.002]
[1754084459196,4.872,3549.6,3549.5,0.002]
[1754084462410,4.87,3549.6,3549.5,0.002]
[1754084462908,0.1408,3550.3,3549.5,1.10751646]
[1754084463076,4.321,3550.2,3549.7,3.0]
[1754084463410,0.55,3550.1,3549.8,0.7487]
[1754084463611,0.55,3549.9,3549.8,0.7487]
[1754084463913,0.55,3550.2,3549.8,0.7487]
[1754084464082,0.1408,3550.3,3549.8,0.7487]
[1754084464083,0.55,3549.9,3549.8,0.7487]
[1754084464290,4.875,3549.9,3549.8,0.7487]
[1754084466320,0.55,3549.9,3549.8,0.7487]
[1754084466621,4.873,3549.9,3549.8,0.7487]
[1754084466974,4.873,3549.9,3549.8,0.1408]
[1754084467371,4.873,3549.9,3549.8,0.7487]
[1754084468111,4.873,3549.9,3549.8,3.7487]
[1754084468508,4.873,3549.9,3549.8,0.7487]
[1754084471227,4.869,3549.9,3549.8,6.56576011]
[1754084471522,4.869,3549.9,3549.8,3.7487]
[1754084473420,0.55,3549.9,3549.8,3.7487]
[1754084473625,0.1408,3550.3,3550.2,2.81674271]
[1754084473950,7.021,3551.9,3551.1,2.81602883]
[1754084473951,0.001,3551.9,3551.1,2.81602883]
[1754084474098,4.329,3551.8,3551.1,12.07241983]
[1754084474284,4.329,3551.8,3551.1,12.64485955]
[1754084474629,0.001,3551.9,3551.1,15.24397105]
[1754084474826,0.001,3551.9,3551.6,3.9]
[1754084475137,1e-08,3551.9,3551.8,12.18450456]
[1754084475727,1e-08,3551.9,3551.8,13.23200456]
[1754084475931,1e-08,3551.9,3551.8,13.58882102]
[1754084476518,1e-08,3551.9,3551.8,7.3605903]
[1754084477692,1e-08,3551.9,3551.8,6.9272903]
[1754084477895,1e-08,3551.9,3551.8,3.1408]
[1754084478141,1.64860001,3551.9,3551.2,2.81594953]
[1754084478431,1.64860001,3551.9,3551.0,0.6142]
[1754084478432,0.55,3551.7,3551.4,0.1408]
[1754084478595,0.55,3551.7,3551.3,0.1408]
[1754084478596,0.55,3551.4,3551.3,0.1408]
[1754084478994,1.6486,3551.4,3551.3,0.1408]
[1754084479213,0.55,3551.3,3550.7,3.0]
[1754084479468,1.6486,3551.3,3550.9,0.1408]
[1754084479635,3.91461209,3551.2,3550.9,0.1408]
[1754084479846,0.55,3551.1,3550.9,0.1408]
[1754084480025,0.55,3551.1,3550.3,0.1408]
[1754084480026,0.6908,3551.0,3550.3,0.1408]
[1754084480337,0.55,3550.4,3550.0,0.1408]
[1754084480494,0.55,3550.2,3550.0,0.1408]
[1754084480806,3.36680272,3550.2,3550.0,0.1408]
[1754084481006,3.36680272,3550.2,3549.5,0.002]
[1754084481007,0.55,3550.0,3549.5,0.002]
[1754084481233,3.50801884,3549.6,3549.5,0.002]
[1754084481443,7.84601884,3549.6,3549.5,0.002]
[1754084481741,8.94461884,3549.6,3549.5,0.002]
[1754084481897,10.12079283,3549.6,3549.5,0.002]
[1754084482822,19.74023114,3549.6,3549.5,0.002]
[1754084483948,28.20341809,3549.6,3549.5,0.002]
[1754084484123,3.36753634,3549.2,3549.0,0.002]
[1754084484323,7.84733634,3549.2,3549.0,0.002]
[1754084484543,10.01241354,3549.2,3549.0,0.002]
[1754084485246,11.65032924,3549.2,3549.0,0.002]
[1754084496135,1.7787157,3549.2,3549.0,0.002]
[1754084496336,5.9719157,3549.2,3549.1,4.1903]
[1754084496572,5.9719157,3549.2,3549.1,7.00791573]
[1754084497339,6.5219157,3549.2,3549.1,7.00791573]
[1754084497536,6.5209157,3549.2,3549.1,5.17306808]
[1754084497736,5.9709157,3549.2,3549.1,5.17306808]
[1754084497973,5.9709157,3549.2,3549.1,7.99068381]
[1754084498172,6.5209157,3549.2,3549.1,7.99068381]
[1754084500250,5.9709157,3549.2,3549.1,7.99068381]
[1754084501574,1.6379157,3549.2,3549.1,7.99068381]
[1754084501782,5.9689157,3549.2,3549.1,7.99068381]
[1754084506565,9.33645204,3549.2,3549.1,0.1428]
[1754084506776,10.54535204,3549.2,3549.1,0.002]
[1754084506977,0.55,3548.9,3548.7,0.002]
[1754084507183,7.69585392,3548.8,3548.7,0.002]
[1754084507345,10.57088952,3548.8,3548.7,0.002]
[1754084507547,11.63898952,3548.8,3548.7,0.002]
[1754084507783,11.77978952,3548.8,3548.7,0.002]
[1754084510582,11.77978952,3548.8,3548.3,0.002]
[1754084510583,3.36817157,3548.4,3548.3,0.002]
[1754084510786,8.73738996,3548.4,3548.3,0.002]
[1754084510970,11.36567708,3548.4,3548.3,1e-08]
[1754084511486,5.81833042,3548.2,3546.5,0.1408]
[1754084511784,5.81833042,3548.2,3546.1,0.002]
[1754084511785,3.36991991,3546.2,3546.1,0.002]
[1754084511984,7.84271991,3546.2,3546.1,0.002]
[1754084512184,9.37852171,3546.2,3546.1,0.002]
[1754084512484,10.44662171,3546.2,3546.1,0.002]
[1754084512687,6.4188018,3546.2,3546.1,0.6391]
[1754084512875,1.5358018,3546.2,3546.1,7.38513244]
[1754084513077,0.0501018,3546.2,3546.1,7.38513244]
[1754084513297,4.4778,3547.0,3546.9,5.81936338]
[1754084513591,4.4778,3547.0,3546.9,6.40129972]
[1754084513784,4.337,3547.0,3546.9,6.98139972]
[1754084514674,1.58536335,3547.7,3547.1,2.81919374]
[1754084514869,4.34,3547.6,3547.2,3.1408]
[1754084515069,0.55,3547.5,3547.2,3.1408]
[1754084515277,0.55,3547.3,3547.2,3.5801]
[1754084515610,0.55,3547.3,3547.2,0.5801]
[1754084516185,0.55,3547.3,3547.2,0.1408]
[1754084522587,0.55,3547.3,3547.2,0.49500032]
[1754084523306,0.55,3547.3,3547.2,0.1408]
[1754084524409,1.1744,3547.3,3547.2,0.1408]
[1754084524712,5.9541,3547.3,3547.2,0.1408]
[1754084525009,5.5104,3547.3,3547.2,0.1408]
[1754084525310,5.5084,3547.3,3547.2,0.1408]
[1754084526006,4.884,3547.3,3547.2,0.1408]
[1754084526912,5.5084,3547.3,3547.2,0.1408]
[1754084527710,4.884,3547.3,3547.2,0.1408]
[1754084528405,0.55,3547.3,3547.2,0.1408]
[1754084528611,4.881,3547.3,3547.2,0.1408]
[1754084529827,5.5054,3547.3,3547.2,3.1408]
[1754084530125,5.5054,3547.3,3547.2,0.1408]
[1754084530425,5.5054,3547.3,3547.2,3.1408]
[1754084530721,4.881,3547.3,3547.2,3.1408]
[1754084531024,5.5054,3547.3,3547.2,0.1408]
[1754084531923,1.1744,3547.3,3547.2,0.1408]
[1754084532121,5.5034,3547.3,3547.2,0.1408]
[1754084532499,5.5024,3547.3,3547.2,3.1408]
[1754084533928,5.5024,3547.3,3547.2,0.1408]
[1754084535125,5.5014,3547.3,3547.2,0.1408]
[1754084535325,1.1744,3547.3,3547.2,0.1408]
[1754084535629,5.5004,3547.3,3547.2,0.1408]
[1754084537317,1.1744,3547.3,3547.2,0.1408]
[1754084537493,5.4984,3547.3,3547.2,0.1408]
[1754084540432,5.4964,3547.3,3547.2,0.1408]
[1754084541636,5.4964,3547.3,3547.2,5.95992494]
[1754084541796,5.4964,3547.3,3547.2,3.0248]
[1754084542293,5.4954,3547.3,3547.2,3.0248]
[1754084544026,1.41372934,3547.6,3547.2,3.0248]
[1754084544027,1.41372934,3547.6,3547.2,3.66739851]
[1754084544229,0.1408,3547.7,3547.6,5.81880708]
[1754084544430,2.81831992,3549.5,3547.7,5.81872762]
[1754084544431,4.327,3547.8,3547.7,5.81872762]
[1754084545725,4.327,3547.8,3547.7,6.28632762]
[1754084545929,4.327,3547.8,3547.7,6.62434936]
[1754084546410,4.327,3547.8,3547.7,6.50834936]
[1754084547995,0.1408,3549.1,3547.8,3.0]
[1754084548338,4.329,3549.0,3548.9,2.81777452]
[1754084548538,0.001,3549.5,3549.1,3.0]
[1754084548833,4.9399,3549.4,3548.9,0.1408]
[1754084549032,0.55,3549.3,3549.2,0.1408]
[1754084549252,1.6174,3549.3,3549.2,0.1408]
[1754084549395,1.0674,3549.3,3549.2,0.1408]
[1754084550150,1.6174,3549.3,3549.2,0.1408]
[1754084550824,5.9474,3549.3,3549.2,0.1408]
[1754084551695,5.9474,3549.3,3549.2,0.0248]
[1754084552439,5.4889,3549.3,3549.2,0.0248]
[1754084553136,0.55,3549.2,3549.0,2.7264896]
[1754084553503,0.55,3549.2,3549.1,0.1408]
[1754084554039,4.33,3549.3,3549.2,5.81753634]
[1754084554237,4.33,3549.3,3549.2,3.0]
[1754084554426,0.55,3549.4,3549.1,2.81758741]
[1754084554739,4.325,3549.3,3549.1,2.81758741]
[1754084555136,0.6089,3549.4,3549.1,2.81758741]
[1754084555302,4.325,3549.3,3549.1,2.81758741]
[1754084556133,4.325,3549.3,3549.1,2.70158741]
[1754084556337,4.325,3549.3,3549.2,3.0]
[1754084557044,4.325,3549.3,3549.2,2.884]
[1754084557826,4.325,3549.3,3549.2,2.768]
[1754084558506,4.325,3549.3,3549.2,2.652]
[1754084558738,4.325,3549.3,3549.0,2.81766295]
[1754084559619,0.6089,3549.4,3549.0,2.81766295]
[1754084559922,4.322,3549.3,3549.0,2.70166295]